Cogmind - Beta 9.4 @@@ ROGUE MODE // 2020.01.31 @ 22:10:00 Player: PabloBot Result: Destroyed by Y-45 Defender with Beam Rifle Performance ------------- Evolutions (1) 500 Regions Visited (2) 400 Robots Destroyed (11) 55 Value Destroyed (201) 201 Prototype IDs (1) 20 Alien Tech Used (0) 0 Bonus (0) 0 TOTAL SCORE: 1176 Bonus ------- None Cogmind --------- Core Integrity 0/400 Matter 46/300 Energy 99/100 System Corruption 5% Temperature Cool (9) Movement Core (100) Ox1 Location -9/Materials Parts ------- > --- POWER (1) -------- (None) > --- PROPULSION (2) --- (None) > --- UTILITY (3) ------ Small Storage Unit Signal Interpreter > --- WEAPON (3) ------- (None) > --- INVENTORY (6) ---- Grenade Launcher Peak State ------------ > --- POWER ------------ Ion Engine > --- PROPULSION ------- Aluminum Leg Improved Flight Unit > --- UTILITY ---------- Small Storage Unit Signal Interpreter > --- WEAPON ----------- Assault Rifle Grenade Launcher Mining Laser > --- INVENTORY -------- Aluminum Leg Medium Laser Light Assault Rifle Grenade Launcher [Rating: 10] Favorites ----------- Power Ion Engine Engine Ion Engine Propulsion Aluminum Leg Leg Aluminum Leg Flight Unit Improved Flight Unit Utility Small Storage Unit Storage Small Storage Unit Processor Signal Interpreter Weapon Assault Rifle Energy Gun Medium Laser Ballistic Gun Assault Rifle Ballistic Cannon Light Cannon Launcher Grenade Launcher Special Weapon Mining Laser Build | -11 -10 -9 ------- Run | Scr Mat Mat Slots Evolved 2 | . . 2 Power . | . . . Propulsion . | . . . Utility 1 | . . 1 Weapon 1 | . . 1 Parts Attached 19 | 6 4 9 Power 1 | 1 . . Engine 1 | 1 . . Core . | . . . Reactor . | . . . Propulsion 5 | 2 1 2 Treads . | . . . Leg 4 | 2 1 1 Wheel . | . . . Hover . | . . . Flight 1 | . . 1 Utility 3 | 1 2 . Device . | . . . Storage 2 | 1 1 . Processor 1 | . 1 . Hackware . | . . . Protection . | . . . Artifact . | . . . Weapon 10 | 2 1 7 Energy Gun 2 | 1 . 1 Energy Cannon . | . . . Ballistic Gun 3 | 1 . 2 Ballistic Cannon 1 | . . 1 Launcher 2 | . 1 1 Special Weapon 2 | . . 2 Impact Weapon . | . . . Slashing Weapon . | . . . Piercing Weapon . | . . . Special Melee Weapon . | . . . Unidentified Prototypes 1 | . . 1 Parts Lost 8 | . . 8 Power 1 | . . 1 Propulsion 2 | . . 2 Utility . | . . . Weapon 5 | . . 5 Highest Loss Streak 6 | . . 6 Average Slot Usage (%) 86 | . 98 75 Engine 11 | . 14 8 Leg 22 | . 28 18 Storage 17 | . 23 11 Processor 7 | . 3 11 Energy Gun 1 | . 2 . Ballistic Gun 13 | . 14 12 Ballistic Cannon 1 | . . 3 Launcher 9 | . 11 7 Special Weapon 1 | . . 2 Naked Turns . | . . . Heaviest Build 16 | 13 16 16 Greatest Support 20 | 20 20 20 Greatest Overweight (x) 2 | 1 . 2 Average Overweight (x) . | . . . Largest Inventory Capacity 6 | 6 6 6 Average Capacity 5 | 5 6 6 Most Carried 4 | 4 4 4 Average Carried 2 | . 2 2 Final Capacity 6 | 6 6 6 Final Carried 3 | 1 3 1 Class Distribution -------------------- 100% | Mutant Dominant Class ---------------- Mutant | -10/Materials Mutant | -9/Materials Resources | -11 -10 -9 ----------- Run | Scr Mat Mat Matter Collected 299 | 230 52 17 Remotely . | . . . Salvage Created 135 | . 102 33 Parts 17 | . 10 7 Haulers Intercepted . | . . . Recyclers Shooed 3 | . 3 . Parts Field Recycled . | . . . Retrieved Matter . | . . . Parts Self-Destructed . | . . . Prevented . | . . . Kills | -11 -10 -9 ------- Run | Scr Mat Mat Combat Hostiles Destroyed 5 | . 5 . AOE 5 | . 5 . Classes Destroyed 6 | . 5 1 Worker 1 | . 1 . Builder 1 | . . 1 Recycler 1 | . 1 . Watcher 3 | . 1 2 Swarmer 3 | . 3 . Grunt 2 | . 2 . Best Kill Streak 8 | . 8 2 Combat Bots Only 5 | . 5 . Max Kills in Single Turn 4 | . 4 1 Gunslinging . | . . . Exploded 2 | . 2 . Melee . | . . . Uniques/NPCs Destroyed . | . . . Combat | -11 -10 -9 -------- Run | Scr Mat Mat Damage Taken 1365 | . 174 1191 Core 413 | . 6 407 Absorbed by Shields . | . . . Core Remaining (%) 98 | 100 97 . Volleys Fired 34 | . 15 19 Largest 3 | . 2 3 Hottest 100 | . 50 100 Shots Fired 56 | . 27 29 Gun 30 | . 15 15 Cannon 2 | . . 2 Launcher 16 | . 12 4 Special 8 | . . 8 Kinetic 26 | . 15 11 Thermal 14 | . . 14 Explosive 16 | . 12 4 Electromagnetic . | . . . Robot Hit Streak 6 | . 6 4 Robot Miss Streak 5 | . 4 5 Penetration Max . | . . . Secondary Targets . | . . . Shots Hit Robots 23 | . 12 11 Core Hits 22 | . 16 6 Critical Hits . | . . . Critical Kills . | . . . Critical Parts Destroyed . | . . . Melee Attacks . | . . . Impact . | . . . Slashing . | . . . Piercing . | . . . Sneak Attacks . | . . . Combat Hostiles . | . . . Follow-up Attacks . | . . . Damage Inflicted 838 | . 553 285 Guns 172 | . 62 110 Cannons . | . . . Explosions 655 | . 491 164 Melee . | . . . Ramming 11 | . . 11 Kinetic 146 | . 62 84 Thermal 26 | . . 26 Explosive 655 | . 491 164 Electromagnetic . | . . . Impact . | . . . Slashing . | . . . Piercing . | . . . Highest Corruption 5 | . . 5 Average Corruption 2 | . . 2 Corruption Purged . | . . . Effects 1 | . . 1 Message Errors 1 | . . 1 Overload Shots . | . . . Overflow Damage 36 | . 19 17 Projectiles . | . . . Explosions 36 | . 19 17 Melee . | . . . Knockbacks . | . . . Impact . | . . . Kinetic . | . . . Secondary . | . . . Self-Inflicted Damage 9 | . . 9 Shots 2 | . . 2 Rammed 5 | . . 5 Targets Rammed 7 | . . 7 Kicked 2 | . . 2 Crushed . | . . . Highest Temperature 154 | . 7 154 Average Temperature 36 | . 4 42 Received Heat Transfer 549 | . 66 483 Siege Activations . | . . . Robots Corrupted . | . . . Combat Hostiles . | . . . Parts Fried . | . . . Impact Corruptions . | . . . Robots Melted . | . . . Combat Hostiles . | . . . Parts Melted . | . . . Heat Transferred 74 | . . 74 Parts Sabotaged . | . . . Parts Stolen . | . . . Parts Stripped . | . . . Power Chain Reactions . | . . . Missiles Intercepted . | . . . Alert | -11 -10 -9 ------- Run | Scr Mat Mat Peak Influence 167 | . 167 149 Average Influence 66 | . 84 96 Maximum Alert Level . | . . . Low Security (%) 100 | 100 100 100 Level 1 . | . . . Level 2 . | . . . Level 3 . | . . . Level 4 . | . . . Level 5 . | . . . High Security . | . . . Max Security . | . . . Squads Dispatched 1 | . . 1 Investigation 1 | . . 1 Extermination . | . . . Reinforcement . | . . . Assault . | . . . Garrison . | . . . Intercept . | . . . Construction Impeded . | . . . Haulers Reinforced . | . . . Stealth | -11 -10 -9 --------- Run | Scr Mat Mat Distress Signals 2 | . 1 1 Communications Jammed . | . . . Distress Signals . | . . . Times Spotted 15 | . 9 6 Peak Tracking Total 4 | . 4 4 Tactical Retreats . | . . . Traps | -11 -10 -9 ------- Run | Scr Mat Mat Traps Triggered 1 | . . 1 Indirectly . | . . . Trap Hack Attempts . | . . . Triggered . | . . . Disarmed . | . . . Reprogrammed . | . . . Reused . | . . . Traps Extracted . | . . . Installed . | . . . Triggered . | . . . Machines | -11 -10 -9 ---------- Run | Scr Mat Mat Machines Disabled 3 | . 1 2 Max in Single Turn 2 | . 1 2 Machines Sabotaged . | . . . Garrisons Compromised . | . . . Overloaded Fab Kills . | . . . Fab Network Shutdowns . | . . . Hacking | -11 -10 -9 --------- Run | Scr Mat Mat Machines Accessed 2 | . 1 1 Terminals . | . . . Fabricators . | . . . Repair Stations 1 | . . 1 Recycling Units 1 | . 1 . Scanalyzers . | . . . Garrison Access . | . . . Total Hacks 7 | . 4 3 Successful 4 | . 3 1 Failed 3 | . 1 2 Catastrophic . | . . . Database Lockouts . | . . . Manual . | . . . Terminals . | . . . Fabricators . | . . . Repair Stations 3 | . . 3 Recycling Units 4 | . 4 . Scanalyzers . | . . . Garrison Access . | . . . Terminal Hacks . | . . . Fabricator Hacks . | . . . Repair Station Hacks 1 | . . 1 Scan Component 1 | . . 1 Recycling Unit Hacks 3 | . 3 . Process 1 | . 1 . Retrieve Matter 1 | . 1 . Retrieve Components 1 | . 1 . Scanalyzer . | . . . Garrison Access Hacks . | . . . Unauthorized Hacks . | . . . Terminals . | . . . Fabricators . | . . . Repair Stations . | . . . Recycling Units . | . . . Scanalyzers . | . . . Garrison Access . | . . . Data Cores Recovered . | . . . Used . | . . . Hacking Detections 2 | . 1 1 Full Trace Events . | . . . Feedback Events . | . . . Feedback Blocked . | . . . Robot Schematics Acquired . | . . . Robots Built . | . . . Matter . | . . . Time . | . . . Total Robot Build Rating . | . . . Part Schematics Acquired . | . . . Parts Built . | . . . Matter . | . . . Time . | . . . Total Part Build Rating . | . . . Parts Repaired . | . . . Time . | . . . Parts Recycled . | . . . Recycled Matter 7 | . 7 . Retrieved Matter 7 | . 7 . Retrieved Components . | . . . Parts Scanalyzed . | . . . Part Schematics Acquired . | . . . Parts Damaged . | . . . Bothacking | -11 -10 -9 ------------ Run | Scr Mat Mat Used RIF Installer . | . . . Robots Hacked . | . . . Non-combat . | . . . Combat . | . . . Robot Hacks Applied . | . . . Relay Couplers Released . | . . . Robots Rewired . | . . . Allies Hacked . | . . . Hacks Repelled . | . . . Allies | -11 -10 -9 -------- Run | Scr Mat Mat Total Allies . | . . . Largest Group . | . . . Highest-Rated Group . | . . . Highest-Rated Ally . | . . . Total Orders . | . . . Ally Attacks . | . . . Total Damage . | . . . Kills . | . . . Allies Corrupted . | . . . Allies Melted . | . . . Intel | -11 -10 -9 ------- Run | Scr Mat Mat Robot Analysis Total . | . . . Derelict Logs Recovered . | . . . Drone Launches . | . . . Drone Recoveries . | . . . Exploration | -11 -10 -9 ------------- Run | Scr Mat Mat Turns Passed 873 | 238 303 332 Spaces Moved 547 | 190 177 180 Core 33 | 22 . 11 Treads . | . . . Legs 514 | 168 177 169 Wheels . | . . . Hover . | . . . Flight . | . . . Fastest Speed 50 | 50 120 100 Average Speed 118 | 114 120 121 Slowest Speed 150 | 120 120 150 Overloaded Moves . | . . . Propulsion Burnouts . | . . . Robots Hopped . | . . . Cave-ins Triggered . | . . . Exploration Rate (%) 15 | 6 23 17 Regions Visited 2 Branch Regions . Pre-discovered Areas . | . . . Known Exits Taken 1 | . 1 . Unknown Exits Taken 1 | 1 . . Scrap Searched . | . . . Spaces Dug 7 | . . 7 Terrain Destroyed 71 | . 44 27 Melee . | . . . Projectile 7 | . . 7 AOE 64 | . 44 20 Actions | -11 -10 -9 --------- Run | Scr Mat Mat Total 702 | 210 240 252 Wait 70 | 8 36 26 Move 545 | 189 176 180 Hop . | . . . Pick Up 18 | 7 6 5 Fast Attach . | . . . Attach 12 | 6 1 5 Detach 2 | . . 2 Swap 7 | . 3 4 Drop 7 | . 3 4 Fire 34 | . 15 19 Melee . | . . . Ram 5 | . . 5 Kick 2 | . . 2 Crush . | . . . Escape Stasis . | . . . Rewire . | . . . Trap . | . . . Miscellaneous . | . . . Route ------- -11/Scrapyard -10/Materials -9/Materials History --------- Turn | Location | Event 26 | -11/Scrapyard | Discovered new exit (range 15) 239 | -11/Scrapyard | Entered Materials 312 | -10/Materials | Build established: Mutant 388 | -10/Materials | Discovered new exit (range 10) 540 | -10/Materials | Identified exit to Materials 542 | -10/Materials | Entered another Materials area 542 | -9/Materials | Evolved 2 slots: Utility x1, Weapon x1 859 | -9/Materials | Core integrity fell below 50% 871 | -9/Materials | Core integrity fell below 20% 874 | -9/Materials | Destroyed by Y-45 Defender with Beam Rifle Last Messages --------------- [Achievement: Oops] 00782_ U-05 Engineer lays Concrete. 00784_ U-05 Engineer builds a Wall. 00784_ Kicked G-34 Mercenary out of the way. 00785_ U-05 Engineer builds a Wall. 00786_ Kicked G-34 Mercenary out of the way. 00786_ U-05 Engineer lays Concrete. 00792_ K-01 Serf cleans the Electrolysis Chamber. 00793_ U-05 Engineer lays Concrete. 00804_ Ion Engine destroyed. 00809_ Aluminum Leg destroyed. 00834_ B DGCYVXK0KUO&WMEH&KZUFY 00844_ Mining Laser destroyed. 00846_ Lgt. Assault Rifle destroyed. 00867_ Lgt. Cannon destroyed. 00868_ Slammed into G-34 Mercenary. 00870_ Destabilizing: System corrupted (+2). 00871_ Slammed into G-34 Mercenary. 00871_ Destabilizing: System corrupted (+1). 00872_ Slammed into G-34 Mercenary. Map ----- +----------------------------------------------------+ | | | | | | | | | | | | | | | | | | | | | | | | | | | | | | | | | | | ????????????????????????????????? | | ????????????????????????????????? | | ???????????????????########?????? | | ???????????????????# #?????? | | ???????????????????# """ !#?????? | | ???????????????????# """ #?????? | | ???????????????????# """ #?????? | | ?????????????????###Y Y #?????? | | ?????????????????# ;gu @#?????? | | ?????????????????######g###?????? | | ???????############## #?????? | | ???????# # #?????? | | ???????# # #########? | | ???????# # ## ? | | #??????# + ## ?? | | #??????# # ## ?? | | #?????##########+#### ## """ ?? | | #?????# ## ### # """""?? | | #?????# [# # """""?? | | ####??# # + """"" ? | | # ##?# # ### # """ ? | | ### #?# # ####+### # | | ############/## / # ! # | | !%! = #""" # # | | ! #""" ######### | | """ " # ####""" #???????? | | """ "" # #??# #???????? | | """ " # #??# #???????? | | ###??########???????? | | ??????????????????? | | """ " ??????????????????? | | """ " =%! ?????????????????? | | """ """ ! ?????????????????? | +----------------------------------------------------+ Best States ------------- Heat Dissipation 28 Energy Generation 10 Energy Capacity 250 Matter Stores 270 Matter Capacity 400 Sight Range 16 Terrain Scan Density 10 Evasion (%) 40 Item Schematics ----------------- None Robot Schematics ------------------ None Fabricated ------------ Nothing Alien Tech Used ----------------- None Achievements -------------- Oops Storm Trooper Challenges ------------ None Game ------ Seed WarpTeslaCutter Manual? 0 Play Time 00:27:01 Cumulative 3.0 hours Start 2020.01.31 @ 21:10:53 End 2020.01.31 @ 22:10:00 Sessions 1 Manual Loads 0 Difficulty Rogue Special Mode None Game No. 3 Rogue 3 Adventurer 0 Explorer 0 Win Type - Total 0 Types 0/0/0/0/0/0/0 Lore% 5 Gallery% 4 Achievement% 4 Wizard Run 0 Options --------- ASCII 0 Keyboard 0 Movement Numpad Keybinds 0 Fullscreen 1 Font 12/Smallcaps Map View 83x54 Tactical HUD 1 Map Filters NONE Filters NONE Steam 1 RUN: 6b8f68a9-76fc-4613-a947-2e10b094dc25